bitfinex-derivatives/quotes_BTCF0:USTF0_20210409
["timestamp","ask_amount","ask_price","bid_price","bid_amount"]
[1617982460597,0.43767909,58126.0,58125.0,1.37725655]
[1617982462096,0.43804596,58127.0,58125.0,1.37725655]
[1617982462497,0.43814408,58126.0,58125.0,0.37725655]
[1617982463024,0.43816827,58127.0,58125.0,0.57725655]
[1617982463306,0.43816827,58127.0,58126.0,3.8379]
[1617982463449,0.43883959,58133.0,58126.0,4.71011222]
[1617982463670,0.43894042,58134.0,58126.0,4.71011222]
[1617982463849,0.55849592,58148.0,58126.0,4.71011222]
[1617982463850,0.43910535,58136.0,58132.0,1.30557171]
[1617982464006,0.43910535,58136.0,58133.0,1.30556931]
[1617982464234,0.43910535,58136.0,58133.0,1.57556931]
[1617982464436,0.43914456,58137.0,58135.0,1.0]
[1617982464803,0.43914456,58137.0,58136.0,0.27]
[1617982465003,0.43914456,58137.0,58136.0,1.57725655]
[1617982465303,0.43914456,58137.0,58136.0,1.10725655]
[1617982465603,0.43914456,58137.0,58136.0,1.37725655]
[1617982466004,0.43914456,58137.0,58136.0,0.37725655]
[1617982466204,0.43914456,58137.0,58136.0,1.37725655]
[1617982466807,0.43914456,58137.0,58136.0,0.37725655]
[1617982467009,0.54640111,58137.0,58136.0,0.37725655]
[1617982467409,0.54640111,58137.0,58136.0,0.51692655]
[1617982467609,0.54640111,58137.0,58136.0,1.51692655]
[1617982469912,0.54640111,58137.0,58136.0,0.51692655]
[1617982470613,0.54640111,58137.0,58136.0,1.51692655]
[1617982472917,0.54640111,58137.0,58136.0,0.51692655]
[1617982475623,0.54640111,58137.0,58136.0,1.51692655]
[1617982478124,0.43914456,58137.0,58136.0,1.51692655]
[1617982481132,0.54640111,58137.0,58136.0,1.51692655]
[1617982482554,0.54640111,58137.0,58136.0,0.51692655]
[1617982482763,0.54640111,58137.0,58136.0,1.37725655]
[1617982482966,1.04567565,58137.0,58136.0,1.37725655]
[1617982486041,1.04567565,58137.0,58136.0,0.37725655]
[1617982486541,1.04567565,58137.0,58136.0,1.37725655]
[1617982487544,1.04567565,58137.0,58136.0,0.37725655]
[1617982488342,1.04567565,58137.0,58136.0,1.49342655]
[1617982488544,0.54640111,58137.0,58136.0,1.49342655]
[1617982488746,0.54640111,58137.0,58136.0,4.73862655]
[1617982489344,0.54640111,58137.0,58136.0,1.49342655]
[1617982490644,0.54640111,58137.0,58136.0,1.69342655]
[1617982491244,0.54640111,58137.0,58136.0,1.49342655]
[1617982492347,0.54640111,58137.0,58136.0,1.69342655]
[1617982493248,0.54640111,58137.0,58136.0,1.49342655]
[1617982494250,0.54640111,58137.0,58136.0,1.69342655]
[1617982495253,0.10725655,58137.0,58136.0,1.99891462]
[1617982496353,0.10725655,58137.0,58136.0,2.36545344]
[1617982496553,0.10725655,58137.0,58136.0,1.99891462]
[1617982497362,0.43986625,58142.0,58136.0,1.99891462]
[1617982497577,4.1382909,58143.0,58141.0,1.0]
[1617982497953,4.1382909,58143.0,58142.0,1.27]
[1617982498392,4.1382909,58143.0,58142.0,1.0]
[1617982498654,3.69845655,58143.0,58142.0,1.0]
[1617982498856,4.13828443,58143.0,58142.0,1.27]
[1617982499154,4.13828443,58143.0,58142.0,1.37725655]
[1617982500958,4.63756731,58143.0,58142.0,1.37725655]
[1617982501159,4.13828443,58143.0,58142.0,1.37725655]
[1617982501957,4.63759389,58143.0,58142.0,1.37725655]
[1617982502960,4.13828443,58143.0,58142.0,1.37725655]
[1617982503657,0.54708443,58143.0,58142.0,1.37725655]
[1617982504060,0.54708443,58143.0,58142.0,4.16785655]
[1617982504261,1.04606545,58143.0,58142.0,4.16785655]
[1617982505562,0.54708443,58143.0,58142.0,4.16785655]
[1617982506726,0.43982788,58143.0,58142.0,4.16785655]
[1617982510883,0.43982788,58143.0,58142.0,1.37725655]
[1617982511104,3.92152788,58143.0,58142.0,1.37725655]
[1617982511469,4.04820304,58143.0,58142.0,1.37725655]
[1617982513670,0.56650304,58143.0,58142.0,1.37725655]
[1617982514270,0.43982788,58143.0,58142.0,1.37725655]
[1617982514883,0.43982788,58143.0,58142.0,4.69225655]
[1617982520488,0.43982788,58143.0,58142.0,4.99818197]
[1617982525328,0.44101892,58145.0,58142.0,5.36533992]
[1617982525583,0.44111335,58147.0,58142.0,5.81406506]
[1617982525783,0.44114683,58151.0,58145.0,1.0]
[1617982525982,0.44117049,58152.0,58150.0,0.67290306]
[1617982526184,0.44117049,58152.0,58151.0,0.87290353]
[1617982526401,0.44117049,58152.0,58151.0,1.88290353]
[1617982526583,0.44117049,58152.0,58151.0,1.5771828]
[1617982526784,0.44124693,58153.0,58151.0,1.94412962]
[1617982527184,0.50140329,58158.0,58156.0,1.0]
[1617982527483,0.50140329,58158.0,58157.0,1.10725655]
[1617982527692,0.50140329,58158.0,58157.0,1.37725655]
[1617982527883,0.50140329,58158.0,58157.0,1.10725655]
[1617982528183,0.50140329,58158.0,58157.0,1.37725655]
[1617982528386,0.9423372,58158.0,58157.0,1.37725655]
[1617982528587,0.9423372,58158.0,58157.0,0.37725655]
[1617982528789,3.38293391,58158.0,58157.0,0.10725655]
[1617982529187,3.38293391,58158.0,58147.0,1.0]
[1617982529188,3.88351363,58158.0,58147.0,0.30572765]
[1617982529386,0.10725655,58148.0,58147.0,0.30572765]
[1617982529587,0.10725655,58148.0,58116.0,0.71336451]
[1617982529588,0.54759362,58148.0,58145.0,0.30573637]
[1617982529787,3.04599362,58148.0,58145.0,0.30573637]
[1617982529988,0.43998982,58146.0,58145.0,0.30573637]
[1617982530239,0.58825982,58146.0,58141.0,0.30577749]
[1617982530594,1.08779371,58146.0,58135.0,0.30579785]
[1617982530990,0.43949247,58136.0,58132.0,0.30580556]
[1617982531291,0.43949247,58136.0,58135.0,0.10725655]
[1617982531489,2.8619,58138.0,58135.0,0.10725655]
[1617982531990,0.43971687,58136.0,58135.0,0.10725655]
[1617982532991,0.93922202,58136.0,58135.0,0.10725655]
[1617982533190,0.43971687,58136.0,58135.0,0.10725655]
[1617982533394,1.04648228,58136.0,58135.0,0.10725655]
[1617982537217,4.33228228,58136.0,58130.0,0.4824]
[1617982537395,4.33228228,58136.0,58127.0,0.30578792]
[1617982537597,0.93796299,58131.0,58124.0,0.30579398]
[1617982537796,1.04146299,58131.0,58124.0,0.30579398]
[1617982537999,0.43866928,58125.0,58121.0,0.30574742]
[1617982538398,3.04508921,58122.0,58119.0,0.30574817]
[1617982538599,3.04508921,58122.0,58116.0,0.30575597]
[1617982539099,0.43784501,58117.0,58111.0,0.30569035]
[1617982539298,0.10725655,58112.0,58111.0,0.30569035]
[1617982539799,0.10725655,58112.0,58111.0,0.57569035]
[1617982540000,0.10725655,58112.0,58111.0,0.27]
[1617982540499,0.10725655,58112.0,58110.0,0.01]
[1617982540951,0.10725655,58112.0,58111.0,0.26]
[1617982541200,0.10725655,58112.0,58111.0,3.4794]
[1617982541401,0.10725655,58112.0,58111.0,3.7494]
[1617982542812,0.10725655,58112.0,58111.0,4.7494]
[1617982543203,0.10725655,58112.0,58111.0,3.7494]
[1617982543410,0.10725655,58112.0,58111.0,4.7494]
[1617982544007,0.10725655,58112.0,58111.0,3.7494]
[1617982544405,0.10725655,58112.0,58111.0,4.7494]
[1617982544720,0.10725655,58112.0,58111.0,1.27]
[1617982544906,3.20725655,58112.0,58111.0,0.27]
[1617982545307,3.20725655,58112.0,58109.0,0.27]
[1617982545507,3.20725655,58112.0,58107.0,0.01]
[1617982545806,3.20725655,58112.0,58111.0,0.26]
[1617982546007,3.20725655,58112.0,58110.0,0.27]
[1617982546208,0.10725655,58112.0,58111.0,0.25]
[1617982546410,2.88835655,58112.0,58111.0,0.25]
[1617982546711,2.88835655,58112.0,58106.0,0.10725655]
[1617982547509,3.32446785,58112.0,58107.0,0.27]
[1617982549019,3.32446785,58112.0,58097.0,0.30485405]
[1617982549020,3.0152,58108.0,58097.0,0.30485405]
[1617982549227,1.0,58107.0,58097.0,0.30485405]
[1617982549453,1.0,58107.0,58094.0,0.36582486]
[1617982549454,0.10725655,58098.0,58094.0,0.30477191]
[1617982549618,0.23826655,58098.0,58094.0,0.30477191]
[1617982549811,3.0146,58095.0,58091.0,0.30475179]
[1617982550123,3.0146,58095.0,58088.0,0.30465637]
[1617982550513,3.0146,58095.0,58085.0,0.30465663]
[1617982550912,3.0146,58095.0,58089.0,0.27]
[1617982551117,3.0146,58095.0,58086.0,0.57453763]
[1617982551314,0.23826655,58098.0,58085.0,0.01]
[1617982551514,0.10725655,58087.0,58085.0,0.01]
[1617982551717,0.10725655,58087.0,58084.0,0.41180206]
[1617982552015,0.10725655,58087.0,58085.0,0.27]
[1617982553315,0.10725655,58087.0,58085.0,1.27]
[1617982553717,0.10725655,58087.0,58085.0,0.27]
[1617982553918,0.10725655,58087.0,58086.0,1.0]
[1617982554231,0.10725655,58087.0,58085.0,0.27]
[1617982554416,0.10725655,58087.0,58084.0,0.10725655]
[1617982554417,0.10725655,58087.0,58086.0,0.27]
[1617982554617,0.10725655,58087.0,58085.0,0.27]
[1617982555417,0.09606,58089.0,58085.0,0.27]
[1617982556219,0.10725655,58093.0,58085.0,0.27]
[1617982556421,0.10725655,58093.0,58086.0,1.0]
[1617982556927,0.10725655,58093.0,58087.0,0.27]
[1617982557130,0.10725655,58093.0,58088.0,1.0]
[1617982557348,0.10725655,58093.0,58089.0,1.0]
[1617982557528,0.10725655,58093.0,58092.0,0.10725655]
[1617982557942,3.41315655,58093.0,58092.0,0.10725655]
[1617982560227,0.10725655,58093.0,58092.0,0.10725655]
[1617982565937,3.09545655,58093.0,58092.0,0.10725655]
[1617982566139,3.24174655,58093.0,58092.0,0.10725655]
[1617982567360,3.24174655,58093.0,58085.0,1.0]
[1617982567537,3.13449,58093.0,58086.0,0.10725655]
[1617982568139,3.13449,58093.0,58087.0,0.27]
[1617982568941,0.14629,58093.0,58087.0,0.27]
[1617982569642,0.10725655,58088.0,58087.0,0.27]
[1617982573043,3.25855655,58088.0,58087.0,0.27]
[1617982573444,0.10725655,58088.0,58087.0,0.27]
[1617982573845,0.10725655,58088.0,58087.0,4.5229]
[1617982574845,0.10725655,58088.0,58087.0,0.27]
[1617982577870,0.10725655,58088.0,58087.0,1.27]
[1617982578288,0.43241834,58107.0,58087.0,4.6079]
[1617982578449,3.6555,58108.0,58099.0,1.0]
[1617982578872,4.0881458,58108.0,58099.0,1.0]
[1617982579151,0.43273671,58110.0,58099.0,1.0]
[1617982579452,0.43273671,58110.0,58109.0,3.2682]
[1617982579651,0.53999326,58110.0,58109.0,3.2682]
[1617982580051,0.53999326,58110.0,58109.0,3.26717707]
[1617982581652,0.53999326,58110.0,58102.0,0.10725655]
[1617982581852,3.527,58108.0,58102.0,0.10725655]
[1617982582052,0.43316255,58107.0,58102.0,0.10725655]
[1617982582555,0.43339354,58108.0,58104.0,1.0]
[1617982582972,0.43339354,58108.0,58102.0,1.10725655]
[1617982583153,0.43339354,58108.0,58102.0,0.10725655]
[1617982583356,0.43379403,58107.0,58102.0,0.10725655]
[1617982583753,0.10725655,58103.0,58102.0,0.10725655]
[1617982587157,0.54245118,58103.0,58102.0,0.10725655]
[1617982587958,0.10725655,58103.0,58102.0,0.10725655]
[1617982588659,0.54284403,58103.0,58102.0,0.10725655]
[1617982589361,0.54284403,58103.0,58098.0,3.4886]
[1617982589861,0.43555366,58101.0,58098.0,3.4886]
[1617982590068,0.0514,58100.0,58099.0,0.27]
[1617982590263,2.813,58100.0,58099.0,0.27]
[1617982590462,2.813,58100.0,58094.0,0.27]
[1617982590762,0.59155829,58100.0,58094.0,0.27]
[1617982590960,3.0015,58095.0,58080.0,0.30488013]
[1617982591263,3.43711043,58095.0,58079.0,0.75640886]
[1617982591662,3.43711043,58095.0,58080.0,0.27]
[1617982591865,0.43548185,58092.0,58080.0,0.27]
[1617982592064,0.0513,58091.0,58080.0,0.27]
[1617982592265,0.43534403,58091.0,58080.0,0.27]
[1617982592664,0.43533729,58090.0,58080.0,0.27]
[1617982593764,0.10725655,58081.0,58080.0,0.27]
[1617982594964,0.10725655,58081.0,58080.0,1.27]
[1617982595566,0.10725655,58081.0,58080.0,0.27]
[1617982597068,0.10725655,58081.0,58080.0,1.27]
[1617982597575,0.10725655,58081.0,58080.0,0.27]
[1617982600677,0.10725655,58081.0,58080.0,1.27]
[1617982602080,0.10725655,58081.0,58080.0,1.57563345]
[1617982602280,2.64335655,58081.0,58080.0,1.57563345]
[1617982602782,0.10725655,58081.0,58080.0,1.57563345]
[1617982603083,0.10725655,58081.0,58080.0,5.57237061]
[1617982603278,0.10725655,58081.0,58080.0,5.20553345]
[1617982603680,0.10725655,58081.0,58080.0,5.57236149]
[1617982604380,0.43641175,58088.0,58080.0,5.57236149]
[1617982604629,0.43641175,58088.0,58084.0,0.30576551]
[1617982604780,0.43648535,58089.0,58086.0,1.0]
[1617982604981,0.43666876,58088.0,58087.0,1.0]
[1617982605180,0.43666876,58088.0,58087.0,1.01]
[1617982605380,0.49620097,58094.0,58088.0,1.0]
[1617982605583,0.49620097,58094.0,58087.0,1.0]
[1617982605783,0.49620097,58094.0,58093.0,0.10725655]
[1617982605982,0.93299718,58094.0,58093.0,0.10725655]
[1617982606382,0.93299718,58094.0,58093.0,0.37725655]
[1617982607886,1.04025373,58094.0,58093.0,0.37725655]
[1617982608188,1.04025373,58094.0,58093.0,1.37725655]
[1617982609590,1.04025373,58094.0,58093.0,0.37725655]
[1617982610291,1.04025373,58094.0,58093.0,0.27]
[1617982610694,1.04025373,58094.0,58087.0,0.27]
[1617982610891,1.04025373,58094.0,58089.0,0.01]
[1617982611201,1.04025373,58094.0,58082.0,0.36738838]
[1617982611202,0.10725655,58094.0,58093.0,0.26]
[1617982611503,2.5864,58085.0,58081.0,0.30617847]
[1617982611692,2.72733,58085.0,58081.0,0.30617847]
[1617982611894,0.5438277,58082.0,58080.0,0.31618572]
[1617982612093,0.43648064,58081.0,58080.0,0.30618572]
[1617982612493,0.43648064,58081.0,58080.0,0.31618572]
[1617982612693,0.43648064,58081.0,58080.0,1.31618572]
[1617982612894,0.43648064,58081.0,58080.0,0.31618572]
[1617982614497,0.43648064,58081.0,58080.0,1.31618572]
[1617982615107,0.43648064,58081.0,58080.0,0.31618572]
[1617982615498,0.43648064,58081.0,58080.0,0.01]
[1617982616203,0.43648064,58081.0,58080.0,0.31614564]
[1617982619002,0.43648064,58081.0,58080.0,0.01]
[1617982621007,0.4365544,58081.0,58080.0,0.01]
[1617982623208,0.4365544,58081.0,58079.0,0.27]
[1617982623409,3.8706631,58080.0,58076.0,0.30616306]
[1617982623624,0.10725655,58082.0,58078.0,0.01]
[1617982623625,0.10308531,58079.0,58078.0,0.01]
[1617982623909,0.10308531,58079.0,58077.0,0.01]
[1617982624111,3.4322,58078.0,58076.0,0.56615173]
[1617982624312,3.86854962,58078.0,58076.0,0.56615173]
[1617982624511,0.4363161,58077.0,58076.0,0.30615173]
[1617982624710,0.4363161,58077.0,58076.0,1.30615173]
[1617982624911,0.4363161,58077.0,58076.0,0.56615173]
[1617982625314,0.4363161,58077.0,58076.0,1.56615173]
[1617982625611,0.4363161,58077.0,58076.0,0.56615173]
[1617982626316,3.3956,58077.0,58076.0,0.26]
[1617982626834,3.83168968,58077.0,58074.0,0.57612427]
[1617982627013,3.83168968,58077.0,58076.0,0.27]
[1617982627214,3.3956,58077.0,58076.0,0.27]
[1617982627414,3.83162373,58077.0,58075.0,0.26]
[1617982627613,3.83162373,58077.0,58076.0,0.27]
[1617982628016,3.83162373,58077.0,58050.0,0.57140706]
[1617982628017,3.83162373,58077.0,58071.0,0.30611369]
[1617982628214,3.83162373,58077.0,58076.0,0.27]
[1617982628616,3.3956,58077.0,58071.0,0.30611369]
[1617982628918,3.83134788,58077.0,58076.0,0.27]
[1617982629116,3.83134788,58077.0,58072.0,0.01]
[1617982629318,4.32632103,58077.0,58069.0,0.01]
[1617982629518,4.32632103,58077.0,58076.0,0.26]
[1617982629718,4.32632103,58077.0,58073.0,0.01]
[1617982629918,3.3956,58077.0,58070.0,0.01]
[1617982630218,3.3956,58077.0,58076.0,0.27]
[1617982630419,3.3956,58077.0,58074.0,0.01]
[1617982630620,3.3956,58077.0,58071.0,0.01]
[1617982630820,4.32619086,58077.0,58076.0,0.27]
[1617982631021,4.32619086,58077.0,58075.0,0.01]
[1617982631321,4.32619086,58077.0,58068.0,0.01]
[1617982631523,4.32619086,58077.0,58067.0,0.30603872]
[1617982631524,1.03383729,58076.0,58067.0,0.30603872]
[1617982631821,1.03383729,58076.0,58069.0,0.27]
[1617982632022,0.4356496,58071.0,58069.0,0.27]
[1617982632222,0.4356496,58071.0,58068.0,0.27]
[1617982632423,0.4356496,58071.0,58067.0,0.30603872]
[1617982632623,0.4356496,58071.0,58070.0,0.27]
[1617982632824,0.4356496,58071.0,58068.0,0.27]
[1617982633225,0.4356496,58071.0,58070.0,0.27]
[1617982633428,0.4356496,58071.0,58067.0,0.57593547]
[1617982633826,0.4356496,58071.0,58068.0,0.27]
[1617982634027,0.4356496,58071.0,58066.0,0.30589993]
[1617982634426,0.4355043,58070.0,58068.0,0.27]
[1617982634624,0.4355043,58070.0,58067.0,0.01]
[1617982634825,0.43552523,58071.0,58066.0,0.3059054]
[1617982635035,0.43552523,58071.0,58070.0,3.5417]
[1617982635426,0.43552523,58071.0,58070.0,3.5517]
[1617982635628,0.43557106,58072.0,58070.0,3.5517]
[1617982635927,0.54277789,58071.0,58070.0,3.5517]
[1617982637631,0.10725655,58071.0,58070.0,3.5517]
[1617982639232,0.10725655,58071.0,58070.0,0.01]
[1617982639531,3.21885655,58071.0,58070.0,0.01]
[1617982639732,3.65420908,58071.0,58068.0,0.27]
[1617982639932,3.65420908,58071.0,58070.0,0.01]
[1617982640140,3.21885655,58071.0,58070.0,0.01]
[1617982640332,3.21885655,58071.0,58066.0,0.27]
[1617982640531,3.65418661,58071.0,58068.0,0.27]
[1617982640942,3.65418661,58071.0,58066.0,0.27]
[1617982641133,3.65418661,58071.0,58069.0,0.27]
[1617982641330,0.43529331,58070.0,58069.0,0.27]
[1617982641539,3.65412416,58071.0,58066.0,0.27]
[1617982641734,0.43525135,58070.0,58069.0,0.27]
[1617982642133,3.21885655,58071.0,58067.0,0.27]
[1617982642441,0.43531487,58070.0,58069.0,0.01]
[1617982642834,0.43531487,58070.0,58068.0,0.27]
[1617982643035,0.43531487,58070.0,58064.0,0.30579284]
[1617982643236,0.43531487,58070.0,58069.0,0.01]
[1617982643535,3.21885655,58071.0,58065.0,0.26]
[1617982643735,3.21885655,58071.0,58069.0,0.01]
[1617982643936,0.54285454,58071.0,58069.0,0.01]
[1617982644136,0.43574591,58070.0,58065.0,0.26]
[1617982644338,0.43574591,58070.0,58064.0,0.30579284]
[1617982644339,0.43574591,58070.0,58068.0,0.27]
[1617982644739,0.54307453,58071.0,58067.0,0.02]
[1617982645037,0.54307453,58071.0,58069.0,0.27]
[1617982645238,0.43607319,58070.0,58066.0,0.26]
[1617982645538,0.43624513,58070.0,58068.0,0.02]
[1617982645838,0.54364359,58071.0,58067.0,0.25]
[1617982646038,0.43648908,58070.0,58069.0,0.02]
[1617982646340,0.43648908,58070.0,58069.0,2.9248]
[1617982646639,0.43648908,58070.0,58069.0,2.9348]
[1617982646841,0.54386841,58071.0,58069.0,2.9348]
[1617982647038,0.54386841,58071.0,58069.0,3.06926]
[1617982647738,0.10725655,58071.0,58069.0,3.06926]
[1617982647939,0.10725655,58071.0,58070.0,0.10725655]
[1617982648340,3.47485655,58071.0,58070.0,0.37725655]
[1617982648540,3.91154029,58071.0,58070.0,0.37725655]
[1617982648940,4.01485912,58071.0,58070.0,0.37725655]
[1617982655049,3.57817538,58071.0,58070.0,0.37725655]
[1617982655450,4.01569063,58071.0,58070.0,0.37725655]
[1617982656452,0.64809063,58071.0,58070.0,0.37725655]
[1617982656653,0.64809063,58071.0,58070.0,3.92105655]
[1617982656654,0.5447718,58071.0,58070.0,3.92105655]
[1617982656852,0.43751525,58071.0,58070.0,4.12105655]
[1617982657110,0.43794948,58074.0,58070.0,4.42692981]
[1617982657351,0.43794948,58074.0,58070.0,3.42692981]
[1617982657552,0.43810905,58076.0,58072.0,0.30586278]
[1617982657752,0.43810905,58076.0,58073.0,1.2]
[1617982658053,0.4382132,58075.0,58073.0,0.47]
[1617982658254,0.4382132,58075.0,58074.0,1.0]
[1617982658654,0.4382132,58075.0,58074.0,4.8826]
[1617982658855,0.43871285,58077.0,58074.0,4.8826]
[1617982659053,0.43871285,58077.0,58074.0,5.18844251]
[1617982659353,0.43866642,58078.0,58074.0,4.18844251]
[1617982659568,0.43878653,58079.0,58076.0,1.0]
[1617982659766,0.43878653,58079.0,58075.0,0.30584304]
[1617982660053,0.43884187,58079.0,58078.0,1.0]
[1617982660553,0.43884187,58079.0,58078.0,0.01]
[1617982660754,0.43895652,58080.0,58078.0,1.01]
[1617982660963,0.43895652,58080.0,58078.0,1.0]
[1617982661155,3.6052,58079.0,58077.0,0.27]
[1617982661354,3.6052,58079.0,58076.0,0.56584614]
[1617982661556,3.6052,58079.0,58078.0,1.27]
[1617982661557,4.04409589,58079.0,58078.0,1.27]
[1617982661861,4.04409589,58079.0,58078.0,1.0]
[1617982662058,3.6052,58079.0,58078.0,1.10725655]
[1617982662256,3.6052,58079.0,58078.0,1.37725655]
[1617982663357,3.6052,58079.0,58078.0,0.37725655]
[1617982663558,3.6052,58079.0,58078.0,1.37725655]
[1617982664357,4.04437836,58079.0,58078.0,1.37725655]
[1617982664959,4.09617836,58079.0,58078.0,1.37725655]
[1617982665259,4.04437836,58079.0,58078.0,1.37725655]
[1617982665460,0.43917836,58079.0,58078.0,1.37725655]
[1617982665659,0.43917836,58079.0,58078.0,3.91365655]
[1617982666562,0.43920814,58080.0,58078.0,4.21961419]
[1617982666814,0.43920814,58080.0,58078.0,3.21961419]
[1617982667038,0.43940893,58083.0,58079.0,1.50595656]
[1617982667165,0.10402765,58101.0,58082.0,0.30594287]
[1617982667166,0.43956155,58085.0,58082.0,0.30594287]
[1617982667467,0.43952427,58084.0,58082.0,1.30594287]
[1617982667663,0.43945152,58085.0,58083.0,0.30591842]
[1617982667861,0.43945152,58085.0,58084.0,1.0]
[1617982668063,0.49935373,58090.0,58084.0,4.23215655]
[1617982668361,0.49935373,58090.0,58084.0,4.50215655]
[1617982668562,0.43954422,58085.0,58084.0,3.50215655]
[1617982669162,0.43954422,58085.0,58084.0,4.50215655]
[1617982671480,0.43983671,58086.0,58084.0,4.80811442]
[1617982671691,0.43990638,58088.0,58085.0,0.30591907]
[1617982672091,0.43988796,58087.0,58086.0,0.27]
[1617982672301,0.43992961,58088.0,58086.0,0.57592049]
[1617982672488,0.43992961,58088.0,58086.0,1.57592049]
[1617982672691,0.43992961,58088.0,58087.0,1.0]
[1617982673167,0.43992961,58088.0,58087.0,1.27]
[1617982673568,0.43994258,58089.0,58087.0,1.57587957]
[1617982673768,0.43994258,58089.0,58087.0,4.67137957]
[1617982673971,0.44004093,58091.0,58088.0,5.30583521]
[1617982674179,0.44004093,58091.0,58090.0,0.10725655]
[1617982674370,0.44022284,58094.0,58090.0,0.61306947]
[1617982674648,0.44022284,58094.0,58090.0,1.42306947]
[1617982674824,0.44022284,58094.0,58090.0,0.42306947]
[1617982674992,0.44023768,58096.0,58093.0,1.0]
[1617982675273,0.80757557,58119.0,58095.0,1.0]
[1617982675672,0.80757557,58119.0,58096.0,0.02]
[1617982675872,0.50048473,58103.0,58101.0,1.0]
[1617982676072,0.50048473,58103.0,58096.0,0.02]
[1617982676431,0.50048473,58103.0,58102.0,0.35725655]
[1617982676630,0.50048473,58103.0,58102.0,0.10725655]
[1617982676825,0.50048473,58103.0,58102.0,1.10725655]
[1617982677073,0.9406951,58103.0,58102.0,1.37725655]
[1617982678275,1.04795165,58103.0,58102.0,1.37725655]
[1617982683082,0.54746692,58103.0,58102.0,1.37725655]
[1617982683284,0.10725655,58103.0,58102.0,1.37725655]
[1617982683782,0.54750302,58103.0,58102.0,1.37725655]
[1617982685294,0.10725655,58103.0,58102.0,1.37725655]
[1617982693293,0.10725655,58103.0,58102.0,0.37725655]
[1617982693594,0.10725655,58103.0,58102.0,1.37725655]
[1617982696399,0.49960827,58111.0,58102.0,1.37725655]
[1617982696700,0.49983676,58113.0,58111.0,2.6119]
[1617982696900,0.49983676,58113.0,58111.0,3.71985]
[1617982697242,0.49983676,58113.0,58112.0,0.27]
[1617982697628,0.49982744,58114.0,58112.0,1.27]
[1617982697824,0.49990479,58115.0,58112.0,1.27]
[1617982698105,0.49990479,58115.0,58112.0,0.27]
[1617982698301,0.49992635,58116.0,58114.0,1.10725655]
[1617982698841,0.50003228,58117.0,58115.0,0.27]
[1617982699035,0.50003228,58117.0,58116.0,2.7256]
[1617982699259,0.56002416,58125.0,58116.0,2.7256]
[1617982699449,4.54767798,58139.0,58116.0,2.9956]
[1617982699450,0.50009278,58119.0,58116.0,2.9956]
[1617982699903,0.50036968,58122.0,58116.0,2.9956]
[1617982700101,0.50036968,58122.0,58118.0,1.0]
[1617982700301,0.50036968,58122.0,58121.0,0.10725655]
[1617982700502,0.50036968,58122.0,58121.0,1.10725655]
[1617982700805,0.50036968,58122.0,58121.0,1.11725655]
[1617982702305,0.10725655,58122.0,58121.0,1.11725655]
[1617982707508,0.10725655,58122.0,58121.0,3.60625655]
[1617982709615,0.50113027,58126.0,58121.0,3.60625655]
[1617982709812,0.09202252,58146.0,58121.0,3.60625655]
[1617982709813,0.50148252,58127.0,58121.0,3.60625655]
[1617982710014,0.50146568,58128.0,58125.0,1.0]
[1617982710316,0.50146568,58128.0,58127.0,0.10725655]
[1617982710719,0.50146568,58128.0,58127.0,1.37725655]
[1617982711015,0.50146568,58128.0,58127.0,4.31295655]
[1617982711818,0.60907452,58129.0,58127.0,4.31295655]
[1617982712114,0.10725655,58129.0,58127.0,1.37725655]
[1617982712414,0.10725655,58129.0,58128.0,1.0]
[1617982712818,0.10725655,58129.0,58128.0,1.27]
[1617982713620,0.5023708,58135.0,58128.0,0.27]
[1617982713824,0.5023708,58135.0,58134.0,3.4786]
[1617982714323,0.56271819,58145.0,58142.0,0.10725655]
[1617982714517,0.56271819,58145.0,58142.0,1.20968655]
[1617982714718,0.56287492,58144.0,58143.0,0.27]
[1617982714919,0.50252027,58144.0,58143.0,0.2689777]
[1617982715219,0.50252027,58144.0,58143.0,1.2689777]
[1617982716321,0.60977682,58144.0,58143.0,1.2689777]
[1617982717148,0.60977682,58144.0,58143.0,0.2689777]
[1617982717530,1.17250154,58144.0,58143.0,0.2689777]
[1617982718407,0.60977682,58144.0,58143.0,1.37623425]
[1617982718723,0.60977682,58144.0,58143.0,0.37623425]
[1617982719424,0.60977682,58144.0,58143.0,1.37623425]
[1617982720024,0.60977682,58144.0,58143.0,0.37623425]
[1617982721027,0.60977682,58144.0,58143.0,1.37623425]
[1617982722129,3.75527682,58144.0,58143.0,1.37623425]
[1617982722532,3.84727866,58144.0,58143.0,1.37623425]
[1617982723132,0.70177866,58144.0,58143.0,1.37623425]
[1617982723629,0.60977682,58144.0,58143.0,1.37623425]
[1617982725735,0.60977682,58144.0,58143.0,1.37521202]
[1617982726235,0.60977682,58144.0,58143.0,1.26795547]
[1617982726638,0.10725655,58144.0,58143.0,1.26795547]
[1617982726838,0.61023055,58144.0,58143.0,1.26795547]
[1617982728638,0.61023055,58144.0,58143.0,1.37521202]
[1617982729239,0.61023055,58144.0,58143.0,0.37521202]
[1617982729441,3.81563055,58144.0,58143.0,1.37521202]
[1617982729640,0.70223197,58144.0,58143.0,1.37521202]
[1617982729841,0.70223197,58144.0,58143.0,3.68631202]
[1617982730042,0.61023055,58144.0,58143.0,3.68631202]
[1617982730743,0.61023055,58144.0,58143.0,0.37521202]
[1617982730945,3.21223055,58144.0,58143.0,1.37521202]
[1617982731144,3.30423318,58144.0,58143.0,1.37521202]
[1617982732745,0.70223318,58144.0,58143.0,1.37521202]
[1617982732944,0.61023055,58144.0,58143.0,4.35721202]
[1617982733555,0.61023055,58144.0,58143.0,0.37521202]
[1617982733956,1.17345159,58144.0,58143.0,0.37521202]
[1617982734147,4.60115159,58144.0,58143.0,0.37521202]
[1617982734750,4.69315515,58144.0,58143.0,0.37521202]
[1617982735949,1.26545515,58144.0,58143.0,1.37418976]
[1617982736149,0.70223411,58144.0,58143.0,4.01258976]
[1617982736350,0.61023055,58144.0,58143.0,4.01258976]
[1617982740356,0.10725655,58144.0,58143.0,4.01258976]
[1617982741056,0.60980413,58144.0,58143.0,4.01258976]
[1617982741556,0.10725655,58144.0,58143.0,4.01258976]
[1617982742867,0.10725655,58144.0,58143.0,0.50788976]
[1617982743100,0.10725655,58144.0,58143.0,0.37418976]
[1617982743261,3.66285655,58144.0,58143.0,1.37418976]
[1617982743568,4.16531078,58144.0,58143.0,1.37418976]
[1617982743790,4.25730242,58144.0,58143.0,1.37418976]
[1617982745264,0.70170242,58144.0,58143.0,1.37418976]
[1617982745466,0.60971078,58144.0,58143.0,4.45738976]